Cogmind - Beta 14 @@@ ROGUE MODE // 2024.10.01 @ 07:08:36 Player: Komeiji O. Result: Destroyed by as-12403 with Assembled F-torch Performance ------------- Evolutions (0) 0 Regions Visited (2) 400 Robots Destroyed (5) 25 Value Destroyed (106) 106 Prototype IDs (0) 0 Alien Tech Used (0) 0 Bonus (0) 0 TOTAL SCORE: 531 Bonus ------- None Cogmind --------- Core Integrity 0/250 Matter 289/300 Energy 96/100 System Corruption 1% Temperature Cool (22) Movement Walking (120) Location -10/Mines Parts ------- > --- POWER (1) -------- (None) > --- PROPULSION (2) --- Aluminum Leg Aluminum Leg > --- UTILITY (2) ------ Large Storage Unit > --- WEAPON (2) ------- (None) > --- INVENTORY (15) --- Light Ion Engine Heat Sink Sensor Array Tractor Beam EM Pulse Gun Small Laser Peak State ------------ > --- POWER ------------ Light Ion Engine > --- PROPULSION ------- Light Treads Light Treads > --- UTILITY ---------- Large Storage Unit Visual Processing Unit > --- WEAPON ----------- Light Assault Rifle Light Assault Rifle > --- INVENTORY -------- Light Ion Engine Light Ion Engine Aluminum Leg Aluminum Leg Heat Sink Sensor Array Tractor Beam EM Pulse Gun Small Laser Mining Laser [Rating: 9] Favorites ----------- Power Light Ion Engine Engine Light Ion Engine Propulsion Light Treads Treads Light Treads Leg Aluminum Leg Utility Visual Processing Unit Storage Large Storage Unit Processor Visual Processing Unit Weapon Light Assault Rifle Ballistic Gun Light Assault Rifle Special Weapon Mining Laser Build | -11 -10 -10 ------- Run | Yrd Mat Min Slots Evolved . | . . . Power . | . . . Propulsion . | . . . Utility . | . . . Weapon . | . . . Parts Attached 14 | 6 4 4 Power 4 | 1 2 1 Engine 4 | 1 2 1 Core . | . . . Reactor . | . . . Propulsion 4 | 2 . 2 Treads 2 | 2 . . Leg 2 | . . 2 Wheel . | . . . Hover . | . . . Flight . | . . . Utility 3 | 1 2 . Device . | . . . Storage 2 | 1 1 . Processor 1 | . 1 . Hackware . | . . . Protection . | . . . Artifact . | . . . Weapon 3 | 2 . 1 Energy Gun . | . . . Energy Cannon . | . . . Ballistic Gun 2 | 2 . . Ballistic Cannon . | . . . Launcher . | . . . Special Weapon 1 | . . 1 Impact Weapon . | . . . Slashing Weapon . | . . . Piercing Weapon . | . . . Special Melee Weapon . | . . . Unidentified Prototypes . | . . . Parts Lost 9 | . 1 8 Power 3 | . 1 2 Propulsion 2 | . . 2 Utility 1 | . . 1 Weapon 3 | . . 3 Highest Loss Streak 8 | . 1 8 To Critical Strikes . | . . . Average Slot Usage (%) 93 | . 93 92 Engine 13 | . 13 13 Treads 26 | . 28 24 Storage 14 | . 14 14 Processor 10 | . 8 12 Ballistic Gun 26 | . 28 23 Peak Build Rating 9 | 6 9 9 Average Rating 7 | 4 7 8 On Entrance 5 | . 6 9 Naked Turns . | . . . Heaviest Build 25 | 10 25 25 Greatest Support 40 | 40 40 40 Greatest Overweight (x) . | . . . Average Overweight (x) . | . . . Largest Inventory Capacity 15 | 8 15 15 Average Capacity 11 | 7 10 15 Most Carried 10 | 6 10 10 Average Carried 6 | 4 6 9 Final Capacity 15 | 8 15 15 Final Carried 10 | 4 10 6 Class Distribution -------------------- 100% | Mutant Dominant Class ---------------- Mutant | -10/Materials Mutant | -10/Mines Resources | -11 -10 -10 ----------- Run | Yrd Mat Min Matter Collected 349 | 209 136 4 Remotely . | . . . Salvage Created 203 | . 203 . Parts 15 | . 15 . Haulers Intercepted . | . . . Recyclers Shooed . | . . . Parts Field Recycled . | . . . Retrieved Matter . | . . . Parts Self-Destructed . | . . . Prevented . | . . . Kills | -11 -10 -10 ------- Run | Yrd Mat Min Combat Hostiles Destroyed 3 | . 2 1 Guns 2 | . 2 . Cannons 1 | . . 1 Classes Destroyed 4 | . 3 1 Recycler 1 | . 1 . Watcher 2 | . 2 . Grunt 2 | . 2 . Assembled 1 | . . 1 Best Kill Streak 2 | . 2 1 Combat Bots Only 1 | . 1 1 Max Kills in Single Turn 1 | . 1 1 Gunslinging . | . . . Exploded . | . . . Melee . | . . . Uniques/NPCs Destroyed . | . . . Combat | -11 -10 -10 -------- Run | Yrd Mat Min Hostile Shots Fired 104 | . 45 59 Missed 26 | . 10 16 Damage Taken 1043 | . 378 665 Core 253 | . 88 165 Absorbed by Shields . | . . . Core Remaining (%) 100 | 100 . . Volleys Fired 29 | . 25 4 Largest 2 | . 2 2 Hottest 120 | . 40 120 Shots Fired 56 | . 50 6 Gun 54 | . 50 4 Cannon . | . . . Launcher . | . . . Special 2 | . . 2 Kinetic 54 | . 50 4 Thermal 2 | . . 2 Explosive . | . . . Electromagnetic . | . . . Robot Hit Streak 11 | . 11 2 Robot Miss Streak 4 | . 4 1 Penetration Max . | . . . Secondary Targets 1 | . 1 . Max Gunslinging Chain 1 | . 1 . Shots Hit Robots 41 | . 37 4 Core Hits 15 | . 12 3 Critical Kills . | . . . Critical Parts Destroyed . | . . . Critical Strikes . | . . . Melee Attacks . | . . . Impact . | . . . Slashing . | . . . Piercing . | . . . Sneak Attacks . | . . . Combat Hostiles . | . . . Follow-up Attacks . | . . . Damage Inflicted 359 | . 306 53 Guns 332 | . 306 26 Cannons . | . . . Explosions . | . . . Melee . | . . . Ramming 3 | . . 3 Kinetic 332 | . 306 26 Thermal 24 | . . 24 Explosive . | . . . Electromagnetic . | . . . Impact . | . . . Slashing . | . . . Piercing . | . . . Highest Corruption 1 | . . 1 Average Corruption 1 | . . 1 Corruption Purged . | . . . Corruption Blocked . | . . . Overload Shots . | . . . Overflow Damage . | . . . Projectiles . | . . . Explosions . | . . . Melee . | . . . Knockbacks . | . . . Impact . | . . . Kinetic . | . . . Secondary . | . . . Self-Inflicted Damage . | . . . Shots . | . . . Rammed 1 | . . 1 Targets Rammed 1 | . . 1 Kicked . | . . . Crushed . | . . . Highest Temperature 240 | . 28 240 Average Temperature 67 | . 9 120 Received Heat Transfer 630 | . 210 420 Siege Activations . | . . . Robots Corrupted . | . . . Combat Hostiles . | . . . Parts Fried . | . . . Impact Corruptions . | . . . Robots Melted . | . . . Combat Hostiles . | . . . Parts Melted . | . . . Heat Transferred 50 | . . 50 Parts Sabotaged . | . . . Parts Stolen . | . . . Parts Stripped . | . . . Power Chain Reactions . | . . . Alert | -11 -10 -10 ------- Run | Yrd Mat Min Peak Influence 111 | . 111 34 Initial 34 | . . 34 Average 48 | . 70 27 Maximum Alert Level . | . . . Low Security (%) 100 | 100 100 100 Level 1 . | . . . Level 2 . | . . . Level 3 . | . . . Level 4 . | . . . Level 5 . | . . . High Security . | . . . Max Security . | . . . Squads Dispatched 1 | . 1 . Investigation 1 | . 1 . Extermination . | . . . Reinforcement . | . . . Assault . | . . . Garrison . | . . . Intercept . | . . . Searches Triggered . | . . . Construction Impeded . | . . . Haulers Reinforced . | . . . Active Scanning Responses . | . . . Cargo Convoy Interrupts . | . . . Stealth | -11 -10 -10 --------- Run | Yrd Mat Min Distress Signals 1 | . 1 . Communications Jammed . | . . . Distress Signals . | . . . Times Spotted 24 | . 11 13 Peak Tracking Total 7 | . 6 7 Tactical Retreats 2 | . 2 . Traps | -11 -10 -10 ------- Run | Yrd Mat Min Traps Triggered 1 | . 1 . Indirectly . | . . . Trap Hack Attempts . | . . . Triggered . | . . . Disarmed . | . . . Reprogrammed . | . . . Reused . | . . . Traps Extracted . | . . . Installed . | . . . Triggered . | . . . Machines | -11 -10 -10 ---------- Run | Yrd Mat Min Machines Disabled . | . . . Max in Single Turn . | . . . Machines Repaired . | . . . Machines Dismantled . | . . . Machines Sabotaged . | . . . Overloaded Fab Kills . | . . . Hacking | -11 -10 -10 --------- Run | Yrd Mat Min Machines Accessed 3 | . 3 . Terminals 3 | . 3 . Fabricators . | . . . Repair Stations . | . . . Recycling Units . | . . . Scanalyzers . | . . . Garrison Access . | . . . Total Hacks 8 | . 8 . Successful 2 | . 2 . Failed 6 | . 6 . Catastrophic 2 | . 2 . Database Lockouts . | . . . Manual 5 | . 5 . Terminals 8 | . 8 . Fabricators . | . . . Repair Stations . | . . . Recycling Units . | . . . Scanalyzers . | . . . Garrison Access . | . . . Terminal Hacks 2 | . 2 . Branch Access Points 1 | . 1 . Zone Layout 1 | . 1 . Fabricator Hacks . | . . . Repair Station Hacks . | . . . Recycling Unit Hacks . | . . . Scanalyzer . | . . . Garrison Access Hacks . | . . . Unauthorized Hacks . | . . . Terminals . | . . . Fabricators . | . . . Repair Stations . | . . . Recycling Units . | . . . Scanalyzers . | . . . Garrison Access . | . . . Data Cores Recovered . | . . . Used . | . . . Hacking Detections 2 | . 2 . Full Trace Events . | . . . Feedback Events . | . . . Feedback Blocked . | . . . Robot Schematics Acquired . | . . . Robots Built . | . . . Authchips . | . . . Time . | . . . Total Robot Build Rating . | . . . Part Schematics Acquired . | . . . Parts Built . | . . . Authchips . | . . . Time . | . . . Total Part Build Rating . | . . . Parts Repaired . | . . . Time . | . . . Parts Recycled . | . . . Recycled Matter . | . . . Retrieved Matter . | . . . Retrieved Components . | . . . Parts Scanalyzed . | . . . Part Schematics Acquired . | . . . Parts Damaged . | . . . Bothacking | -11 -10 -10 ------------ Run | Yrd Mat Min Used RIF Installer . | . . . Robots Hacked . | . . . Non-combat . | . . . Combat . | . . . Robot Hacks Applied . | . . . Relay Couplers Released . | . . . Fabnet Peak Effective % . | . . . Robots Rewired . | . . . Allies Hacked . | . . . Hacks Repelled . | . . . Allies | -11 -10 -10 -------- Run | Yrd Mat Min Total Allies . | . . . Largest Group . | . . . Highest-Rated Group . | . . . Highest-Rated Ally . | . . . Total Orders . | . . . Ally Attacks . | . . . Total Damage . | . . . Kills . | . . . Allies Corrupted . | . . . Allies Melted . | . . . Intel | -11 -10 -10 ------- Run | Yrd Mat Min Robot Analysis Total . | . . . Derelict Logs Recovered 1 | . . 1 Drone Launches . | . . . Drone Recoveries . | . . . Exploration | -11 -10 -10 ------------- Run | Yrd Mat Min Turns Passed 827 | 111 470 246 Spaces Moved 455 | 63 246 146 Core 2 | 2 . . Treads 438 | 61 246 131 Legs 15 | . . 15 Wheels . | . . . Hover . | . . . Flight . | . . . Fastest Speed 50 | 50 160 120 Average Speed 158 | 156 160 155 Slowest Speed 160 | 160 160 160 Overloaded Moves . | . . . Propulsion Burnouts . | . . . Robots Hopped . | . . . Cave-ins Triggered . | . . . Exploration Rate (%) 24 | 4 31 37 Regions Visited 2 Branch Regions 1 Pre-discovered Areas . | . . . Known Exits Taken 1 | . 1 . Unknown Exits Taken 1 | 1 . . Scrap Searched . | . . . Spaces Dug . | . . . Terrain Destroyed . | . . . Melee . | . . . Projectile . | . . . AOE . | . . . Terrain Rammed . | . . . Walls Destroyed . | . . . Machines Disabled . | . . . Actions | -11 -10 -10 --------- Run | Yrd Mat Min Total 515 | 74 286 155 Wait . | . . . Move 453 | 62 245 146 Hop . | . . . Pick Up 14 | 6 8 . Fast Attach 6 | 4 2 . Attach 6 | 2 . 4 Detach . | . . . Swap 2 | . 2 . Drop 4 | . 4 . Fire 29 | . 25 4 Melee . | . . . Ram . | . . . Kick . | . . . Crush 1 | . . 1 Escape Stasis . | . . . Rewire . | . . . Trap . | . . . Miscellaneous . | . . . Route ------- -11/Scrapyard -10/Materials (discovered 2 exits: *Min x2) -10/Mines (discovered 1 exit: Mat) History --------- Turn | Location | Event 7 | -11/Scrapyard | Discovered new exit (range 15) 112 | -11/Scrapyard | Entered Materials 270 | -10/Materials | Discovered new exit (range 16) 302 | -10/Materials | Build established: Mutant 451 | -10/Materials | Identified exit to Mines 582 | -10/Materials | Entered Mines 598 | -10/Mines | Identified exit to Materials 761 | -10/Mines | Assembled infested the area 799 | -10/Mines | Core integrity fell below 50% 811 | -10/Mines | Core integrity fell below 20% 828 | -10/Mines | Destroyed by as-12403 with Assembled F-torch Last Messages --------------- 00773_ as-71979 destroyed. 00773_ Lgt. Ion Engine destroyed. 00773_ Dirty Bomb Trap short circuited. 00773_ An explosion rips through the floor. 00773_ as-58437 destroyed. 00781_ U-05 Engineer lays Concrete. 00790_ as-92475 sneak attacks. 00790_ R-06 Scavenger system corrupted by crushing effect. 00790_ R-06 Scavenger knocked back. 00791_ R-06 Scavenger system terminally corrupted. 00795_ Slammed into as-32615. 00798_ Lgt. Treads destroyed. 00801_ as-32615 destroyed. 00801_ Visual Processing Unit destroyed. 00801_ System corrupted by crushing effect (+1). 00804_ as-92475 destroyed. 00806_ Lgt. Assault Rifle destroyed. 00807_ Mining Laser destroyed. 00810_ Lgt. Ion Engine destroyed. 00811_ Acquired 4 matter. Map ----- +----------------------------------------------------+ | ???????????????????????????????? "" | | ??????????????????????????????????? " | | ?????????????????????????????????????# " | | ??????????????????????????????????????# " | | ????????????????????????????????????????#" "" | | ???????????????????????????????????????? | | ?????????????????????????????????####?### | | ????????????????????????????????## ### #? | | ????????????????????????????????# ## % #? | | ????????????????????????????????# = #?? | | ????????????????????????????????## #" * #?? | | ?????????????????????????????????## ## #####?? | | ?????????????????????????????????## ##????? | | ??????????????????????????????#### % ##???? | | ?????????????????????????????## #???? | | ???????????????????????####### ## ##??? | | ??????????????????????## ##### ##?? | | ??????????????????????# ####???## #?? | | ?????????????????????## ##???????### ##? | | ?????????????????????# #??????????## #? | | ?????????????????????# #???????????## #? | | ?????????????????????##### #????????????## #? | | ?????????????????????????## ##?????###?????## #? | | ??????????????????????????## #?????## ?????## ##? | | ?????????????????###########a#????## ????## ##? | | ??????????????# @ a #????# #???## #? | | ?????????????????#############????# ##?## #? | | ?????????????????????????????????## ### ##? | | ????????????????????############## ###?? | | ????????????????????# ## ##???? | | ??????????????#?????# ## #????? | | ??????????????# ##### ## ##????? | | ?????????###### # ###### #?????? | | ?????????# ## #????# ## ##?????? | | ?????????# ###### ## #????## ### #??????? | | ????????????????# #########?????## #?####??????? | | ????????????????# #??????????????# #######?????? | | ?????????????#### ###????????????# #?????? | | ?????????????# #????????????# #?????? | | ?????????????# #????????????####### #?????? | | ?????????????# """ #???????????????#### #?????? | | ?????????????# """ #????????######## # #?????? | | ?????????????# """ #???????## #?????? | | ?????????????# #?????### """" #?????? | | ?????????????# ####### """" ##????? | | ?????????????### #### ## """" ##???? | | ???????????????# ### #???? | | ???????????????# ## ###### #???? | | ???????????????# #########????## ##???? | | ???????????????# ##??????????????####????? | +----------------------------------------------------+ Best States ------------- Heat Dissipation 25 Energy Generation 10 Energy Capacity 125 Matter Stores 300 Matter Capacity 300 Sight Range 18 Terrain Scan Density 10 Evasion (%) 52 Recoil Reduction 2 Item Schematics ----------------- None Robot Schematics ------------------ None Fabricated ------------ Nothing Alien Tech Used ----------------- None Achievements -------------- None Challenges ------------ None Game ------ Seed ParticleDeuteriumShield Manual? 0 Play Time 00:10:27 Cumulative 39.2 hours Start 2024.10.01 @ 07:00:31 End 2024.10.01 @ 07:08:36 Sessions 1 Manual Loads 0 Difficulty Rogue Special Mode None Game No. 12 Rogue 11 Adventurer 1 Explorer 0 Win Type - Total 0 Types 0/0/0/0/0/0/0/0/0 Lore% 3 Gallery% 19 Achievement% 20 Wizard Run 0 Options --------- Layout 0 ASCII 0 Keyboard 0 Movement Vi Keybinds 0 Fullscreen 2 Font 36/Terminus++ Map View 76x50 Zoom Use 0% Tactical HUD 1 Map Filters NONE Filters NONE Steam 0 RUN: 2245778e-8510-4d4d-bffc-8678cbeb4f95